[Event "*** SCC Grand Prix: Titled Tuesday Blitz"]
[Site "Chess.com"]
[Date "2020.07.21"]
[Round "10"]
[White "maxip32"]
[Black "JoliyRoger"]
[Result "1-0"]
[WhiteElo "2419"]
[BlackElo "2311"]
[TimeControl "180+1"]
[EndTime "12:00:29 PDT"]
[Termination "maxip32 won on time"]

1. e4 {[%clk 0:03:00.9]} 1... c6 {[%clk 0:02:54.7]} 2. d4 {[%clk 0:02:59.3]}
2... d5 {[%clk 0:02:54.5]} 3. e5 {[%clk 0:02:59.7]} 3... Bf5 {[%clk 0:02:53.7]}
4. h4 {[%clk 0:03:00.1]} 4... Qb6 {[%clk 0:02:53.2]} 5. c3 {[%clk 0:02:54.8]}
5... h6 {[%clk 0:02:49.3]} 6. g4 {[%clk 0:02:54]} 6... Bxb1 {[%clk 0:02:42.2]}
7. Rxb1 {[%clk 0:02:50.9]} 7... e6 {[%clk 0:02:43.1]} 8. h5 {[%clk 0:02:50.2]}
8... c5 {[%clk 0:02:42.9]} 9. f4 {[%clk 0:02:48.5]} 9... Nc6 {[%clk 0:02:41.6]}
10. Nf3 {[%clk 0:02:47.9]} 10... Nge7 {[%clk 0:02:27.6]} 11. Be3 {[%clk
0:02:46.9]} 11... Rc8 {[%clk 0:02:20]} 12. a3 {[%clk 0:02:45.7]} 12... cxd4
{[%clk 0:02:19.4]} 13. cxd4 {[%clk 0:02:35.1]} 13... Na5 {[%clk 0:02:17.7]} 14.
Bd3 {[%clk 0:01:42.2]} 14... Nc4 {[%clk 0:02:16.9]} 15. Kf2 {[%clk 0:01:34.9]}
15... Nxb2 {[%clk 0:02:02.6]} 16. Qd2 {[%clk 0:01:19.9]} 16... Nxd3+ {[%clk
0:02:00.8]} 17. Qxd3 {[%clk 0:01:20.8]} 17... Qc7 {[%clk 0:02:00.4]} 18. Rhc1
{[%clk 0:01:19.6]} 18... Nc6 {[%clk 0:02:00.5]} 19. Qb5 {[%clk 0:01:18.6]} 19...
Bxa3 {[%clk 0:01:25.2]} 20. Rc3 {[%clk 0:01:16.2]} 20... Be7 {[%clk 0:01:16.1]}
21. Qxb7 {[%clk 0:01:15.1]} 21... O-O {[%clk 0:01:03.4]} 22. Qa6 {[%clk
0:01:14.6]} 22... Qd7 {[%clk 0:00:16.4]} 23. Rb7 {[%clk 0:01:03.8]} 23... Qe8
{[%clk 0:00:16.7]} 24. g5 {[%clk 0:00:51.1]} 24... Nb4 {[%clk 0:00:16]} 25. Rxc8
{[%clk 0:00:46.5]} 25... Nxa6 {[%clk 0:00:14.5]} 26. Rxe8 {[%clk 0:00:45.6]}
26... Rxe8 {[%clk 0:00:15.1]} 27. Rxa7 {[%clk 0:00:45.5]} 27... Nb4 {[%clk
0:00:15.3]} 28. gxh6 {[%clk 0:00:45.6]} 28... gxh6 {[%clk 0:00:15]} 29. f5
{[%clk 0:00:46]} 29... Bf8 {[%clk 0:00:12.9]} 30. f6 {[%clk 0:00:43.3]} 30...
Rc8 {[%clk 0:00:09.9]} 31. Ke2 {[%clk 0:00:28.9]} 31... Rc2+ {[%clk 0:00:09.1]}
32. Bd2 {[%clk 0:00:29.1]} 32... Rc8 {[%clk 0:00:09.1]} 33. Rb7 {[%clk
0:00:26.7]} 33... Nc6 {[%clk 0:00:08.8]} 34. Kd3 {[%clk 0:00:23.3]} 34... Rb8
{[%clk 0:00:06.4]} 35. Rc7 {[%clk 0:00:19.6]} 35... Nb4+ {[%clk 0:00:04.6]} 36.
Ke2 {[%clk 0:00:17.4]} 36... Na6 {[%clk 0:00:03.4]} 37. Ra7 {[%clk 0:00:16.9]}
37... Nb4 {[%clk 0:00:03.8]} 38. Nh2 {[%clk 0:00:16.7]} 38... Nc6 {[%clk
0:00:04.2]} 39. Ra4 {[%clk 0:00:16.2]} 39... Bb4 {[%clk 0:00:03.5]} 40. Bxb4
{[%clk 0:00:14.9]} 40... Rxb4 {[%clk 0:00:02.3]} 41. Rxb4 {[%clk 0:00:14.3]}
41... Nxb4 {[%clk 0:00:02.8]} 42. Ng4 {[%clk 0:00:14.4]} 42... Kh7 {[%clk
0:00:03.3]} 43. Kd2 {[%clk 0:00:13.8]} 43... Nc6 {[%clk 0:00:03.7]} 44. Kc3
{[%clk 0:00:14]} 44... Na5 {[%clk 0:00:03.8]} 45. Kb4 {[%clk 0:00:13.7]} 45...
Nc4 {[%clk 0:00:04.3]} 46. Kc5 {[%clk 0:00:13.7]} 46... Nd2 {[%clk 0:00:04.8]}
47. Kd6 {[%clk 0:00:09.1]} 47... Nf3 {[%clk 0:00:05.3]} 48. Ke7 {[%clk
0:00:09.1]} 48... Ng5 {[%clk 0:00:02.6]} 49. Kf8 {[%clk 0:00:08.1]} 1-0

[Event "*** SCC Grand Prix: Titled Tuesday Blitz"]
[Site "Chess.com"]
[Date "2020.07.21"]
[Round "10"]
[White "Evachess2006"]
[Black "Klavdia_Nik"]
[Result "1-0"]
[WhiteElo "1617"]
[BlackElo "2009"]
[TimeControl "180+1"]
[EndTime "12:00:33 PDT"]
[Termination "Evachess2006 won on time"]

1. e4 {[%clk 0:03:00.6]} 1... e5 {[%clk 0:02:51.3]} 2. Nf3 {[%clk 0:02:53.8]}
2... Nc6 {[%clk 0:02:51.7]} 3. Bc4 {[%clk 0:02:51.8]} 3... Be7 {[%clk
0:02:50.9]} 4. d3 {[%clk 0:02:52.7]} 4... Nf6 {[%clk 0:02:50.8]} 5. Ng5 {[%clk
0:02:36.2]} 5... O-O {[%clk 0:02:50]} 6. Qf3 {[%clk 0:02:15.4]} 6... Nd4 {[%clk
0:02:47]} 7. Qd1 {[%clk 0:02:10.6]} 7... d5 {[%clk 0:02:44.5]} 8. exd5 {[%clk
0:02:01.5]} 8... Nxd5 {[%clk 0:02:43.9]} 9. Bxd5 {[%clk 0:02:02.4]} 9... Qxd5
{[%clk 0:02:42.9]} 10. O-O {[%clk 0:01:57.8]} 10... h6 {[%clk 0:02:31.3]} 11.
Nf3 {[%clk 0:01:42.2]} 11... c5 {[%clk 0:01:59.5]} 12. Nxd4 {[%clk 0:01:30.4]}
12... cxd4 {[%clk 0:01:58.6]} 13. Qf3 {[%clk 0:01:27.5]} 13... Qxf3 {[%clk
0:01:52.7]} 14. gxf3 {[%clk 0:01:28.4]} 14... Bh3 {[%clk 0:01:47.2]} 15. Re1
{[%clk 0:01:26.7]} 15... Rac8 {[%clk 0:01:31.1]} 16. Na3 {[%clk 0:00:59.5]}
16... Bxa3 {[%clk 0:01:22.9]} 17. bxa3 {[%clk 0:01:00.4]} 17... f6 {[%clk
0:01:12.2]} 18. Re2 {[%clk 0:00:54.4]} 18... Rc6 {[%clk 0:01:10.9]} 19. f4
{[%clk 0:00:52.7]} 19... Bg4 {[%clk 0:01:04.7]} 20. Rd2 {[%clk 0:00:37.8]} 20...
Rfc8 {[%clk 0:00:48.7]} 21. fxe5 {[%clk 0:00:35.5]} 21... fxe5 {[%clk 0:00:48]}
22. Bb2 {[%clk 0:00:33.7]} 22... Rxc2 {[%clk 0:00:47.3]} 23. Rxc2 {[%clk
0:00:34.6]} 23... Rxc2 {[%clk 0:00:47]} 24. Rb1 {[%clk 0:00:30.9]} 24... Bf3
{[%clk 0:00:40.4]} 25. Kf1 {[%clk 0:00:24.7]} 25... g5 {[%clk 0:00:36.8]} 26.
Ke1 {[%clk 0:00:17.3]} 26... Kf7 {[%clk 0:00:32.8]} 27. Ba1 {[%clk 0:00:12.1]}
27... Rxa2 {[%clk 0:00:30.3]} 28. Bb2 {[%clk 0:00:08.4]} 28... Ke6 {[%clk
0:00:27]} 29. Kd2 {[%clk 0:00:08.4]} 29... a5 {[%clk 0:00:22.9]} 30. Kc2 {[%clk
0:00:08.3]} 30... a4 {[%clk 0:00:22.5]} 31. Rc1 {[%clk 0:00:04.1]} 31... g4
{[%clk 0:00:20.3]} 32. Kb1 {[%clk 0:00:04]} 32... Bd5 {[%clk 0:00:19.6]} 33. Rc5
{[%clk 0:00:01.8]} 33... Kd6 {[%clk 0:00:15.2]} 34. Rb5 {[%clk 0:00:02.3]} 34...
Kc6 {[%clk 0:00:13.5]} 35. Rxd5 {[%clk 0:00:02.6]} 35... Kxd5 {[%clk 0:00:12.3]}
36. Kxa2 {[%clk 0:00:03.5]} 36... e4 {[%clk 0:00:13]} 37. dxe4+ {[%clk
0:00:02.4]} 37... Kxe4 {[%clk 0:00:13.6]} 38. Bc1 {[%clk 0:00:03.1]} 38... Kf3
{[%clk 0:00:13]} 39. Kb2 {[%clk 0:00:03.6]} 39... h5 {[%clk 0:00:09.3]} 40. Kc2
{[%clk 0:00:04.5]} 40... Kxf2 {[%clk 0:00:09.8]} 41. Bf4 {[%clk 0:00:01.8]}
41... Ke2 {[%clk 0:00:01.8]} 42. Bd2 {[%clk 0:00:02.3]} 1-0

[Event "*** SCC Grand Prix: Titled Tuesday Blitz"]
[Site "Chess.com"]
[Date "2020.07.21"]
[Round "10"]
[White "mariangie523"]
[Black "nobodyperfect13"]
[Result "1/2-1/2"]
[WhiteElo "2050"]
[BlackElo "2280"]
[TimeControl "180+1"]
[EndTime "12:00:34 PDT"]
[Termination "Game drawn by repetition"]

1. e4 {[%clk 0:03:00.9]} 1... c5 {[%clk 0:02:56.5]} 2. Nf3 {[%clk 0:02:58.9]}
2... e6 {[%clk 0:02:56.1]} 3. d4 {[%clk 0:02:59]} 3... cxd4 {[%clk 0:02:54.9]}
4. Nxd4 {[%clk 0:02:59.2]} 4... a6 {[%clk 0:02:55.3]} 5. c4 {[%clk 0:02:58.9]}
5... Qc7 {[%clk 0:02:53.8]} 6. Nc3 {[%clk 0:02:56.8]} 6... Nf6 {[%clk
0:02:54.3]} 7. Be3 {[%clk 0:02:56.6]} 7... b6 {[%clk 0:02:54.1]} 8. Be2 {[%clk
0:02:56.7]} 8... Bb7 {[%clk 0:02:53.8]} 9. f3 {[%clk 0:02:54.4]} 9... d6 {[%clk
0:02:52.9]} 10. O-O {[%clk 0:02:54]} 10... Be7 {[%clk 0:02:52]} 11. Qd2 {[%clk
0:02:54.2]} 11... O-O {[%clk 0:02:51]} 12. Rfd1 {[%clk 0:02:53.9]} 12... Nbd7
{[%clk 0:02:51.2]} 13. Rac1 {[%clk 0:02:52.6]} 13... Rfe8 {[%clk 0:02:50.9]} 14.
a3 {[%clk 0:02:50.3]} 14... Rac8 {[%clk 0:02:47.2]} 15. b4 {[%clk 0:02:49.6]}
15... Qb8 {[%clk 0:02:46.8]} 16. Bf1 {[%clk 0:02:49]} 16... Bd8 {[%clk
0:02:46.2]} 17. Nb3 {[%clk 0:02:48.1]} 17... Bc7 {[%clk 0:02:45.8]} 18. h3
{[%clk 0:02:37.1]} 18... Ne5 {[%clk 0:02:25.1]} 19. Na4 {[%clk 0:02:30]} 19...
Bc6 {[%clk 0:02:09.8]} 20. Nc3 {[%clk 0:02:19.3]} 20... Ng6 {[%clk 0:01:56.6]}
21. Nd4 {[%clk 0:02:17.4]} 21... Bb7 {[%clk 0:01:55.5]} 22. Qf2 {[%clk
0:02:13.3]} 22... d5 {[%clk 0:01:49.6]} 23. cxd5 {[%clk 0:02:07.4]} 23... exd5
{[%clk 0:01:45.5]} 24. exd5 {[%clk 0:01:48.3]} 24... Bh2+ {[%clk 0:01:21.1]} 25.
Kh1 {[%clk 0:01:46.4]} 25... Nh5 {[%clk 0:01:18.6]} 26. Nde2 {[%clk 0:01:20.4]}
26... Ne5 {[%clk 0:00:45.6]} 27. g4 {[%clk 0:01:12.2]} 27... Nc4 {[%clk
0:00:40.5]} 28. gxh5 {[%clk 0:01:00.3]} 28... Nxe3 {[%clk 0:00:35.5]} 29. Qxh2
{[%clk 0:01:00.1]} 29... Qxh2+ {[%clk 0:00:19.1]} 30. Kxh2 {[%clk 0:01:00.3]}
30... Nxd1 {[%clk 0:00:19.1]} 31. Rxd1 {[%clk 0:00:59.4]} 31... Red8 {[%clk
0:00:19.3]} 32. Bg2 {[%clk 0:00:47.4]} 32... f5 {[%clk 0:00:15.7]} 33. f4 {[%clk
0:00:46.8]} 33... Rd6 {[%clk 0:00:15.6]} 34. Rd2 {[%clk 0:00:37.4]} 34... Rcd8
{[%clk 0:00:15.2]} 35. Kg3 {[%clk 0:00:34.5]} 35... Rc8 {[%clk 0:00:15.1]} 36.
Na4 {[%clk 0:00:31.2]} 36... Rc4 {[%clk 0:00:11.4]} 37. Bf3 {[%clk 0:00:14.6]}
37... g6 {[%clk 0:00:09.1]} 38. hxg6 {[%clk 0:00:14]} 38... Rxg6+ {[%clk
0:00:08.4]} 39. Kf2 {[%clk 0:00:13.9]} 39... Rd6 {[%clk 0:00:08.1]} 40. Nb2
{[%clk 0:00:12.2]} 40... Rc7 {[%clk 0:00:04.6]} 41. Na4 {[%clk 0:00:10.8]} 41...
Rc4 {[%clk 0:00:01.8]} 42. Nb2 {[%clk 0:00:09.4]} 42... Rc7 {[%clk 0:00:02.7]}
43. Na4 {[%clk 0:00:08.7]} 43... Rc4 {[%clk 0:00:03]} 1/2-1/2

[Event "*** SCC Grand Prix: Titled Tuesday Blitz"]
[Site "Chess.com"]
[Date "2020.07.21"]
[Round "10"]
[White "Onegust"]
[Black "MacDaddyMac"]
[Result "0-1"]
[WhiteElo "2548"]
[BlackElo "2379"]
[TimeControl "180+1"]
[EndTime "12:00:36 PDT"]
[Termination "MacDaddyMac won on time"]

1. d4 {[%clk 0:03:00.9]} 1... Nf6 {[%clk 0:02:58.2]} 2. c4 {[%clk 0:03:00.6]}
2... e6 {[%clk 0:02:58]} 3. Nc3 {[%clk 0:03:00.8]} 3... Bb4 {[%clk 0:02:56.2]}
4. Bd2 {[%clk 0:03:00.7]} 4... c5 {[%clk 0:02:56.2]} 5. e3 {[%clk 0:03:00.6]}
5... cxd4 {[%clk 0:02:55.3]} 6. exd4 {[%clk 0:03:00.6]} 6... d5 {[%clk
0:02:52.4]} 7. Nf3 {[%clk 0:02:57.4]} 7... Nc6 {[%clk 0:02:51.8]} 8. Be2 {[%clk
0:02:50.5]} 8... h6 {[%clk 0:02:35.4]} 9. cxd5 {[%clk 0:02:35.9]} 9... Nxd5
{[%clk 0:02:32.9]} 10. Nxd5 {[%clk 0:02:33.2]} 10... Bxd2+ {[%clk 0:02:31.6]}
11. Qxd2 {[%clk 0:02:33.5]} 11... Qxd5 {[%clk 0:02:32]} 12. Rc1 {[%clk
0:02:31.4]} 12... Bd7 {[%clk 0:02:29.9]} 13. a3 {[%clk 0:02:27.6]} 13... O-O
{[%clk 0:02:22.6]} 14. O-O {[%clk 0:02:21.5]} 14... Rfd8 {[%clk 0:02:19.3]} 15.
Rc5 {[%clk 0:02:03.7]} 15... Qd6 {[%clk 0:02:07.7]} 16. Rd1 {[%clk 0:01:46.6]}
16... Be8 {[%clk 0:02:04.7]} 17. Qc1 {[%clk 0:01:10.9]} 17... b6 {[%clk
0:01:54.1]} 18. Rc3 {[%clk 0:01:08.7]} 18... Qd5 {[%clk 0:01:43.1]} 19. Bc4
{[%clk 0:00:59.3]} 19... Qh5 {[%clk 0:01:37.2]} 20. d5 {[%clk 0:00:49.9]} 20...
exd5 {[%clk 0:01:35.5]} 21. Be2 {[%clk 0:00:39]} 21... Qg6 {[%clk 0:01:25.8]}
22. Bb5 {[%clk 0:00:19.4]} 22... Ne7 {[%clk 0:01:08.5]} 23. Bxe8 {[%clk
0:00:19.1]} 23... Rxe8 {[%clk 0:01:08.7]} 24. Rc7 {[%clk 0:00:17.2]} 24... Rac8
{[%clk 0:00:58.7]} 25. Ne5 {[%clk 0:00:14]} 25... Qd6 {[%clk 0:00:56.8]} 26.
Rxc8 {[%clk 0:00:09.7]} 26... Rxc8 {[%clk 0:00:56.6]} 27. Qe3 {[%clk 0:00:09.3]}
27... d4 {[%clk 0:00:50.2]} 28. Qf4 {[%clk 0:00:06.2]} 28... f6 {[%clk
0:00:23.6]} 29. Ng6 {[%clk 0:00:04.8]} 29... Qxf4 {[%clk 0:00:22.4]} 30. Nxf4
{[%clk 0:00:05.7]} 30... Nc6 {[%clk 0:00:17.7]} 31. h3 {[%clk 0:00:05.2]} 31...
Kf7 {[%clk 0:00:17.8]} 32. Kf1 {[%clk 0:00:03.5]} 32... Rd8 {[%clk 0:00:18]} 33.
Ke2 {[%clk 0:00:03.4]} 33... g5 {[%clk 0:00:18.2]} 34. Nd3 {[%clk 0:00:03.6]}
34... Ne5 {[%clk 0:00:18]} 35. f4 {[%clk 0:00:03]} 35... Nxd3 {[%clk 0:00:17.5]}
36. Kxd3 {[%clk 0:00:03.9]} 36... gxf4 {[%clk 0:00:17.7]} 37. Ke4 {[%clk
0:00:04.4]} 37... Ke6 {[%clk 0:00:18.1]} 38. Kxf4 {[%clk 0:00:04.8]} 38... Rd5
{[%clk 0:00:16.3]} 39. Ke4 {[%clk 0:00:04.5]} 39... Re5+ {[%clk 0:00:16.5]} 40.
Kd3 {[%clk 0:00:03.6]} 40... Kd5 {[%clk 0:00:16.8]} 41. Rd2 {[%clk 0:00:04.4]}
41... Re3+ {[%clk 0:00:16.9]} 42. Kc2 {[%clk 0:00:03.9]} 42... Rg3 {[%clk
0:00:17.2]} 43. Rf2 {[%clk 0:00:04.1]} 43... Ke5 {[%clk 0:00:17.3]} 44. Kd2
{[%clk 0:00:04.4]} 44... f5 {[%clk 0:00:17.7]} 45. Re2+ {[%clk 0:00:04.6]} 45...
Kf4 {[%clk 0:00:18]} 46. Rf2+ {[%clk 0:00:05.2]} 46... Ke4 {[%clk 0:00:18.2]}
47. Re2+ {[%clk 0:00:05.7]} 47... Re3 {[%clk 0:00:18.6]} 48. Rf2 {[%clk
0:00:05.8]} 48... f4 {[%clk 0:00:18.9]} 49. Kc2 {[%clk 0:00:02.9]} 49... d3+
{[%clk 0:00:19.2]} 50. Kd2 {[%clk 0:00:02.6]} 50... Rg3 {[%clk 0:00:19.3]} 51.
Rf1 {[%clk 0:00:01.8]} 51... Rxg2+ {[%clk 0:00:19.3]} 52. Kc3 {[%clk 0:00:02.7]}
52... Rc2+ {[%clk 0:00:19.3]} 53. Kb3 {[%clk 0:00:02.1]} 53... Re2 {[%clk
0:00:19]} 54. Rg1 {[%clk 0:00:02.2]} 54... d2 {[%clk 0:00:18.6]} 55. Rg8 {[%clk
0:00:03.1]} 55... d1=Q+ {[%clk 0:00:18.5]} 56. Kb4 {[%clk 0:00:03.2]} 56... Qd4+
{[%clk 0:00:18.3]} 57. Kb5 {[%clk 0:00:04.1]} 57... Qd5+ {[%clk 0:00:18.7]} 0-1

[Event "*** SCC Grand Prix: Titled Tuesday Blitz"]
[Site "Chess.com"]
[Date "2020.07.21"]
[Round "10"]
[White "Vesper2018"]
[Black "Igor_Lysyj"]
[Result "0-1"]
[WhiteElo "2586"]
[BlackElo "2808"]
[TimeControl "180+1"]
[EndTime "12:00:42 PDT"]
[Termination "Igor_Lysyj won by resignation"]

1. e4 {[%clk 0:03:00.6]} 1... e5 {[%clk 0:02:59.5]} 2. Nf3 {[%clk 0:03:00.4]}
2... Nc6 {[%clk 0:02:59.7]} 3. Bc4 {[%clk 0:03:00.2]} 3... Bc5 {[%clk 0:02:59]}
4. d3 {[%clk 0:03:00.2]} 4... Nf6 {[%clk 0:02:57]} 5. Bg5 {[%clk 0:02:59.8]}
5... h6 {[%clk 0:02:54]} 6. Bh4 {[%clk 0:02:59.8]} 6... d6 {[%clk 0:02:53.3]} 7.
c3 {[%clk 0:02:58]} 7... a6 {[%clk 0:02:52.4]} 8. a4 {[%clk 0:02:57.4]} 8... Ba7
{[%clk 0:02:51.5]} 9. O-O {[%clk 0:02:56.5]} 9... g5 {[%clk 0:02:49.6]} 10. Bg3
{[%clk 0:02:52.3]} 10... Nh7 {[%clk 0:02:49.5]} 11. d4 {[%clk 0:02:37]} 11... h5
{[%clk 0:02:44.6]} 12. h4 {[%clk 0:02:25.2]} 12... Bg4 {[%clk 0:02:41.7]} 13.
dxe5 {[%clk 0:02:12.2]} 13... gxh4 {[%clk 0:02:29.8]} 14. Qd5 {[%clk 0:01:48.6]}
14... Be6 {[%clk 0:02:23.7]} 15. Bxh4 {[%clk 0:01:14.5]} 15... Bxd5 {[%clk
0:02:21.5]} 16. exd5 {[%clk 0:01:12.1]} 16... Ne7 {[%clk 0:01:40.9]} 17. Re1
{[%clk 0:01:10.2]} 17... O-O {[%clk 0:01:31.7]} 18. exd6 {[%clk 0:00:48]} 18...
Qxd6 {[%clk 0:01:30.9]} 19. Bxe7 {[%clk 0:00:44.5]} 19... Qf4 {[%clk 0:01:25.7]}
20. Bxf8 {[%clk 0:00:35.3]} 20... Rxf8 {[%clk 0:01:04.7]} 21. Nbd2 {[%clk
0:00:34.8]} 21... Ng5 {[%clk 0:01:04.5]} 22. Be2 {[%clk 0:00:14.9]} 22... Kh8
{[%clk 0:01:03.2]} 23. Rf1 {[%clk 0:00:14.4]} 23... Rg8 {[%clk 0:00:58.3]} 24.
Kh1 {[%clk 0:00:14.2]} 24... h4 {[%clk 0:00:55.9]} 25. Rae1 {[%clk 0:00:12.5]}
25... Nxf3 {[%clk 0:00:43.6]} 26. Nxf3 {[%clk 0:00:12.4]} 26... Qg4 {[%clk
0:00:44.1]} 27. Rg1 {[%clk 0:00:10.4]} 27... Bxf2 {[%clk 0:00:43.5]} 28. Ne5
{[%clk 0:00:07.5]} 28... Qf4 {[%clk 0:00:42.1]} 29. Ref1 {[%clk 0:00:04.5]}
29... Qxe5 {[%clk 0:00:30.8]} 30. Rxf2 {[%clk 0:00:05]} 30... Qe3 {[%clk
0:00:29.2]} 31. Rgf1 {[%clk 0:00:04.2]} 31... h3 {[%clk 0:00:28.7]} 32. g4
{[%clk 0:00:04.3]} 32... Re8 {[%clk 0:00:25.9]} 33. Rh2 {[%clk 0:00:04.1]} 33...
Qg3 {[%clk 0:00:24.3]} 34. Rf3 {[%clk 0:00:02.2]} 34... Qe1+ {[%clk 0:00:23.3]}
35. Bf1 {[%clk 0:00:02.5]} 35... Kg7 {[%clk 0:00:22.3]} 36. Rfxh3 {[%clk
0:00:02.4]} 36... Qe4+ {[%clk 0:00:21.7]} 37. Kg1 {[%clk 0:00:02.7]} 37... Re5
{[%clk 0:00:17]} 38. Rh7+ {[%clk 0:00:01.9]} 38... Qxh7 {[%clk 0:00:16.3]} 39.
Rxh7+ {[%clk 0:00:01.3]} 39... Kxh7 {[%clk 0:00:16.5]} 40. c4 {[%clk 0:00:01.6]}
40... b6 {[%clk 0:00:15.8]} 41. Kf2 {[%clk 0:00:02]} 41... a5 {[%clk 0:00:15.6]}
42. Bd3+ {[%clk 0:00:02.1]} 42... Kg7 {[%clk 0:00:15.3]} 43. b3 {[%clk
0:00:02.4]} 43... f6 {[%clk 0:00:15.4]} 44. Kf3 {[%clk 0:00:01.9]} 44... Kf8
{[%clk 0:00:15.5]} 45. Be4 {[%clk 0:00:01.8]} 45... Ke7 {[%clk 0:00:15.6]} 46.
c5 {[%clk 0:00:02]} 46... bxc5 {[%clk 0:00:15.1]} 47. Kf4 {[%clk 0:00:02.6]}
47... Kd6 {[%clk 0:00:14.9]} 48. Kf3 {[%clk 0:00:02.7]} 48... c4 {[%clk
0:00:14.2]} 49. bxc4 {[%clk 0:00:02.4]} 49... Kc5 {[%clk 0:00:14.2]} 50. Bd3
{[%clk 0:00:02.5]} 50... Kb4 {[%clk 0:00:13.8]} 51. Kf4 {[%clk 0:00:02.3]} 51...
Kxa4 {[%clk 0:00:13.4]} 52. Be4 {[%clk 0:00:01.7]} 52... Kb4 {[%clk 0:00:13.1]}
53. Bf5 {[%clk 0:00:02]} 53... a4 {[%clk 0:00:12]} 54. g5 {[%clk 0:00:02.5]}
54... Rxf5+ {[%clk 0:00:09.8]} 55. Kxf5 {[%clk 0:00:02.5]} 55... fxg5 {[%clk
0:00:09.7]} 0-1

[Event "*** SCC Grand Prix: Titled Tuesday Blitz"]
[Site "Chess.com"]
[Date "2020.07.21"]
[Round "10"]
[White "baag"]
[Black "GMBenjaminBok"]
[Result "0-1"]
[WhiteElo "2701"]
[BlackElo "2873"]
[TimeControl "180+1"]
[EndTime "12:00:43 PDT"]
[Termination "GMBenjaminBok won by resignation"]

1. d4 {[%clk 0:03:00.9]} 1... Nf6 {[%clk 0:02:59.1]} 2. c4 {[%clk 0:03:01.4]}
2... e6 {[%clk 0:02:58.7]} 3. Nc3 {[%clk 0:03:02]} 3... Bb4 {[%clk 0:02:57.9]}
4. Bd2 {[%clk 0:03:02.5]} 4... O-O {[%clk 0:02:56.5]} 5. Nf3 {[%clk 0:03:02.5]}
5... d5 {[%clk 0:02:55.7]} 6. e3 {[%clk 0:03:02.7]} 6... b6 {[%clk 0:02:56]} 7.
Bd3 {[%clk 0:03:02.3]} 7... dxc4 {[%clk 0:02:52.8]} 8. Bxc4 {[%clk 0:03:01.8]}
8... Bb7 {[%clk 0:02:53.2]} 9. O-O {[%clk 0:03:02]} 9... Nbd7 {[%clk 0:02:53.3]}
10. Qe2 {[%clk 0:03:01.2]} 10... c5 {[%clk 0:02:47.2]} 11. a3 {[%clk 0:03:01.2]}
11... Bxc3 {[%clk 0:02:43.2]} 12. Bxc3 {[%clk 0:03:02.1]} 12... Ne4 {[%clk
0:02:43.1]} 13. Rfd1 {[%clk 0:03:02.2]} 13... Nxc3 {[%clk 0:02:41.2]} 14. bxc3
{[%clk 0:03:03.1]} 14... Qe7 {[%clk 0:02:41.2]} 15. d5 {[%clk 0:02:46.2]} 15...
exd5 {[%clk 0:02:38.4]} 16. Bxd5 {[%clk 0:02:47.1]} 16... Bxd5 {[%clk
0:02:38.3]} 17. Rxd5 {[%clk 0:02:48]} 17... Nf6 {[%clk 0:02:38.8]} 18. Rdd1
{[%clk 0:02:35.8]} 18... Rfd8 {[%clk 0:02:36.4]} 19. c4 {[%clk 0:02:35]} 19...
h6 {[%clk 0:02:23.8]} 20. h3 {[%clk 0:02:34.8]} 20... Ne4 {[%clk 0:02:22.5]} 21.
Qc2 {[%clk 0:02:34]} 21... Qe6 {[%clk 0:02:15.6]} 22. a4 {[%clk 0:02:32.2]}
22... Nd6 {[%clk 0:02:01.2]} 23. Rac1 {[%clk 0:02:26]} 23... Nb7 {[%clk
0:01:54.8]} 24. e4 {[%clk 0:02:08.5]} 24... Na5 {[%clk 0:01:53.1]} 25. Rd5
{[%clk 0:02:06.2]} 25... Nc6 {[%clk 0:01:46.6]} 26. Rcd1 {[%clk 0:02:03.4]}
26... Re8 {[%clk 0:01:39.7]} 27. Rd6 {[%clk 0:01:59.4]} 27... Nb4 {[%clk
0:01:25.1]} 28. Rxe6 {[%clk 0:01:44.5]} 28... Nxc2 {[%clk 0:01:25.3]} 29. Rxe8+
{[%clk 0:01:44.9]} 29... Rxe8 {[%clk 0:01:25]} 30. e5 {[%clk 0:01:44.5]} 30...
Nb4 {[%clk 0:01:00.4]} 31. Rd7 {[%clk 0:01:41.7]} 31... Nc6 {[%clk 0:00:59.4]}
32. Rd5 {[%clk 0:00:56.3]} 32... Kf8 {[%clk 0:00:58.1]} 33. Kf1 {[%clk
0:00:54.6]} 33... Ke7 {[%clk 0:00:56.5]} 34. Ke2 {[%clk 0:00:54.7]} 34... Rd8
{[%clk 0:00:49.1]} 35. Rxd8 {[%clk 0:00:50.6]} 35... Kxd8 {[%clk 0:00:43.1]} 36.
Kd3 {[%clk 0:00:51.5]} 36... Kd7 {[%clk 0:00:42.4]} 37. Ke4 {[%clk 0:00:49.7]}
37... Ke6 {[%clk 0:00:42.6]} 38. h4 {[%clk 0:00:48.3]} 38... g6 {[%clk
0:00:24.4]} 39. g4 {[%clk 0:00:47.1]} 39... a6 {[%clk 0:00:23.2]} 40. h5 {[%clk
0:00:44.7]} 40... g5 {[%clk 0:00:21.9]} 41. Nd2 {[%clk 0:00:25.6]} 41... Nxe5
{[%clk 0:00:21.9]} 42. f3 {[%clk 0:00:26.5]} 42... f6 {[%clk 0:00:22.2]} 43. Ke3
{[%clk 0:00:24.5]} 43... f5 {[%clk 0:00:22.2]} 44. gxf5+ {[%clk 0:00:14.8]}
44... Kxf5 {[%clk 0:00:23.1]} 45. Ke2 {[%clk 0:00:11.7]} 45... Kf4 {[%clk
0:00:23]} 46. Ne4 {[%clk 0:00:09.7]} 46... Nxf3 {[%clk 0:00:20.1]} 47. Nf6
{[%clk 0:00:07.6]} 47... Nd4+ {[%clk 0:00:16.9]} 48. Kf2 {[%clk 0:00:07]} 48...
b5 {[%clk 0:00:15.7]} 49. cxb5 {[%clk 0:00:06.4]} 49... axb5 {[%clk 0:00:15.9]}
50. a5 {[%clk 0:00:05.8]} 50... Nc6 {[%clk 0:00:15.4]} 51. a6 {[%clk 0:00:05.7]}
51... b4 {[%clk 0:00:15.3]} 52. Nd5+ {[%clk 0:00:04.6]} 52... Ke4 {[%clk
0:00:15.2]} 53. Ne7 {[%clk 0:00:03.3]} 53... Na7 {[%clk 0:00:14.8]} 54. Ke2
{[%clk 0:00:04.2]} 54... b3 {[%clk 0:00:13.7]} 55. Kd2 {[%clk 0:00:04.6]} 55...
g4 {[%clk 0:00:13.9]} 0-1